bitfinex/quotes_SOLUSD_20251223
["timestamp","ask_amount","ask_price","bid_price","bid_amount"]
[1766458964839,0.72,125.64,125.61,26.15598374]
[1766458965044,0.72,125.66,125.62,3.65483415]
[1766458965846,0.72,125.66,125.61,46.05885771]
[1766458969037,0.72,125.65,125.61,42.40402356]
[1766458969352,0.72,125.65,125.62,22.50011746]
[1766458971349,0.72,125.65,125.62,7.96011746]
[1766458971648,0.72,125.65,125.62,22.50011746]
[1766458973149,0.72,125.64,125.62,14.54]
[1766458973452,0.72,125.62,125.59,7.96223567]
[1766458973755,0.72,125.61,125.58,22.50284528]
[1766458974331,0.72,125.61,125.58,14.54]
[1766458975250,0.72,125.6,125.58,14.54]
[1766458976249,0.72,125.63,125.58,22.50298777]
[1766458976434,3.65483415,125.61,125.58,22.50298777]
[1766458976635,0.72,125.61,125.58,22.50298777]
[1766458980761,4.37483415,125.6,125.58,14.54]
[1766458981259,4.37483415,125.6,125.57,14.54]
[1766458981473,0.72,125.58,125.56,0.2]
[1766458984135,0.72,125.6,125.56,8.16431284]
[1766458984345,4.37483415,125.6,125.56,8.16431284]
[1766458984948,0.72,125.59,125.56,8.16431284]
[1766458985456,3.65483415,125.59,125.56,0.2]
[1766458985764,0.72,125.57,125.56,0.2]
[1766458986340,0.72,125.57,125.54,7.96517724]
[1766458986840,0.72,125.56,125.53,14.54]
[1766458987340,0.72,125.56,125.53,22.5062181]
[1766458987553,4.37483415,125.57,125.53,22.7062181]
[1766458988546,3.65483415,125.57,125.53,22.7062181]
[1766458988755,0.72,125.56,125.53,22.7062181]
[1766458989764,0.72,125.55,125.53,22.5062181]
[1766458990147,3.65483415,125.56,125.53,22.5062181]
[1766458990347,0.72,125.56,125.53,22.5062181]
[1766458990744,0.72,125.56,125.53,22.7062181]
[1766458990945,4.37483415,125.57,125.53,22.7062181]
[1766458991163,0.72,125.56,125.53,22.5062181]
[1766458992568,0.72,125.56,125.53,22.7062181]
[1766458993062,3.65483415,125.57,125.53,22.7062181]
[1766458993266,4.37483415,125.58,125.54,0.2]
[1766458993463,0.72,125.58,125.54,3.85483415]
[1766458993662,0.72,125.58,125.55,14.54]
[1766458994266,0.72,125.58,125.55,14.74]
[1766458994462,0.72,125.58,125.56,7.96431984]
[1766458994973,0.72,125.57,125.55,22.50477406]
[1766458995573,0.72,125.57,125.55,14.54]
[1766458995767,0.72,125.57,125.54,7.96538957]
[1766458995768,0.72,125.56,125.53,22.50611661]
[1766458995975,0.72,125.56,125.54,7.96554827]
[1766458996272,0.72,125.58,125.54,7.96554827]
[1766458996483,0.72,125.58,125.54,0.2]
[1766458996656,4.37483415,125.58,125.54,8.16558865]
[1766458996856,3.65483415,125.58,125.54,7.96558865]
[1766458997055,0.72,125.57,125.54,7.96558865]
[1766458997257,0.72,125.56,125.54,7.96558865]
[1766458997667,4.37483415,125.57,125.54,7.96558865]
[1766458997855,0.72,125.6,125.55,0.2]
[1766458998055,18.39899881,125.61,125.54,8.16558865]
[1766458998056,0.72,125.58,125.54,8.16558865]
[1766458998376,4.37483415,125.58,125.54,8.16558865]
[1766458998876,3.65483415,125.58,125.54,8.16558865]
[1766458999083,0.72,125.57,125.54,8.16558865]
[1766458999666,4.37483415,125.59,125.54,31.73439444]
[1766459000057,3.65483415,125.59,125.55,14.54]
[1766459000257,0.72,125.58,125.55,14.54]
[1766459000688,0.72,125.58,125.56,7.96431984]
[1766459000980,4.37483415,125.6,125.56,8.16431984]
[1766459001361,0.72,125.59,125.56,8.16431984]
[1766459002778,0.72,125.59,125.56,7.96431984]
[1766459004782,3.06050187,125.57,125.55,14.54]
[1766459004979,3.06050187,125.57,125.54,7.96543271]
[1766459005390,0.72,125.56,125.54,7.96543271]
[1766459005566,0.72,125.56,125.53,32.94376493]
[1766459006685,0.72,125.61,125.54,0.2]
[1766459006861,0.72,125.58,125.54,0.2]
[1766459007989,2.34050187,125.59,125.53,7.96609197]
[1766459008289,0.72,125.57,125.53,25.04659384]
[1766459009095,0.72,125.57,125.53,22.70609197]
[1766459009286,0.72,125.57,125.53,17.08050187]
[1766459009979,0.72,125.57,125.53,14.74]
[1766459010176,0.72,125.56,125.53,14.54]
[1766459011111,0.66,125.58,125.54,0.2]
[1766459011268,0.66,125.58,125.54,7.96558865]
[1766459011598,2.34050187,125.58,125.54,7.96558865]
[1766459011799,0.66,125.57,125.54,7.96558865]
[1766459012291,0.66,125.56,125.53,22.50621921]
[1766459013586,0.66,125.56,125.53,14.54]
[1766459014984,0.66,125.56,125.53,22.50620748]
[1766459015586,0.66,125.56,125.53,24.84670935]
[1766459015797,2.34050187,125.56,125.53,22.50620748]
[1766459016006,10.43767296,125.59,125.53,24.84670935]
[1766459016177,0.68,125.58,125.54,0.2]
[1766459016682,3.02050187,125.58,125.53,30.42226738]
[1766459016873,0.68,125.57,125.54,14.54]
[1766459018195,0.68,125.57,125.54,25.04563521]
[1766459018801,0.68,125.57,125.54,14.54]
[1766459019098,3.02050187,125.56,125.53,7.96596157]
[1766459019269,0.68,125.57,125.52,7.96665906]
[1766459019469,0.68,125.55,125.5,34.4592578]
[1766459019666,0.68,125.5,125.47,4.15259947]
[1766459019887,2.34050187,125.52,125.47,6.69310134]
[1766459020067,0.68,125.56,125.51,2.34050187]
[1766459020272,0.68,125.55,125.5,8.16812749]
[1766459020469,10.43767296,125.58,125.52,2.34050187]
[1766459020671,0.68,125.57,125.53,2.34050187]
[1766459020870,0.68,125.57,125.53,0.2]
[1766459021175,0.68,125.57,125.54,2.34050187]
[1766459021570,0.68,125.61,125.55,2.54050187]
[1766459021767,0.68,125.6,125.57,2.34050187]
[1766459022196,0.68,125.6,125.56,8.1636961]
[1766459022402,0.68,125.6,125.57,2.34050187]
[1766459022779,0.68,125.6,125.58,2.34050187]
[1766459023005,0.68,125.6,125.57,10.30385336]
[1766459025499,0.68,125.6,125.58,2.34050187]
[1766459026983,10.43767296,125.63,125.59,2.34050187]
[1766459027311,0.68,125.62,125.58,25.04343872]
[1766459027482,0.68,125.62,125.59,2.34050187]
[1766459028002,0.68,125.62,125.58,22.70293685]
[1766459028300,0.68,125.62,125.59,2.34050187]
[1766459028681,19.89379834,125.67,125.6,2.34050187]
[1766459028682,3.02050187,125.64,125.6,2.34050187]
[1766459028994,0.68,125.63,125.6,2.34050187]
[1766459029188,3.02050187,125.65,125.59,0.2]
[1766459029379,0.68,125.64,125.6,2.34050187]
[1766459029579,3.02050187,125.63,125.59,0.2]
[1766459029874,0.68,125.63,125.6,7.96178343]
[1766459030087,0.68,125.63,125.6,10.3022853]
[1766459030976,0.68,125.63,125.6,7.96178343]
[1766459032280,0.68,125.63,125.6,10.3022853]
[1766459033079,2.34050187,125.62,125.57,14.74]
[1766459033303,0.68,125.61,125.57,17.08050187]
[1766459033599,0.68,125.61,125.58,10.30303576]
[1766459034184,0.68,125.61,125.58,7.96253389]
[1766459036299,0.68,125.61,125.58,10.50303576]
[1766459037708,0.68,125.61,125.58,7.96253389]
[1766459038896,0.68,125.61,125.58,10.30303576]
[1766459039102,0.68,125.61,125.58,7.96253389]
[1766459039882,0.68,125.6,125.57,22.50353877]
[1766459040896,0.68,125.59,125.56,7.96421663]
[1766459041407,2.34050187,125.59,125.56,7.96421663]
[1766459041580,0.68,125.58,125.55,22.50477489]
[1766459043006,0.68,125.56,125.54,7.96537723]
[1766459047409,0.68,125.56,125.53,35.48418279]
[1766459047712,0.68,125.56,125.53,33.14368092]
[1766459047890,0.68,125.56,125.53,35.48418279]
[1766459048309,0.68,125.56,125.53,33.14368092]
[1766459048506,0.68,125.56,125.53,35.28418279]
[1766459050392,0.71,125.57,125.53,35.48418279]
[1766459051992,0.71,125.57,125.54,10.30560393]
[1766459052313,0.71,125.6,125.55,0.2]
[1766459052493,0.71,125.58,125.55,0.2]
[1766459052685,0.71,125.58,125.54,10.50560393]
[1766459052884,0.71,125.64,125.57,2.34050187]
[1766459053089,0.71,125.62,125.58,2.34050187]
[1766459053491,0.71,125.62,125.57,14.74]
[1766459053693,0.71,125.62,125.58,2.34050187]
[1766459054305,0.71,125.62,125.58,10.30304409]
[1766459055404,0.71,125.62,125.58,7.96254222]
[1766459055604,0.71,125.62,125.58,10.30304409]
[1766459056427,0.71,125.63,125.58,10.50304409]
[1766459056595,0.71,125.63,125.59,2.34050187]
[1766459056795,0.71,125.63,125.58,28.07017082]
[1766459056995,0.71,125.63,125.58,30.41067269]
[1766459058209,0.71,125.62,125.58,30.41067269]
[1766459058729,0.71,125.62,125.58,8.16254222]
[1766459058898,0.71,125.6,125.57,22.50347216]
[1766459059219,0.71,125.59,125.56,7.9640964]
[1766459059516,0.71,125.58,125.56,7.9640964]
[1766459059907,0.71,125.58,125.55,22.50476256]
[1766459063408,0.71,125.55,125.51,0.2]
[1766459063615,0.71,125.54,125.5,16.88050187]
[1766459063814,0.71,125.54,125.51,7.96746557]
[1766459064112,0.71,125.54,125.51,11.62735709]
[1766459064631,0.71,125.54,125.51,7.96746557]
[1766459065507,3.65989152,125.54,125.5,7.96808667]
[1766459065711,0.71,125.52,125.49,14.54]
[1766459065911,0.71,125.52,125.48,23.7829124]
[1766459066415,0.71,125.52,125.48,20.12302088]
[1766459066621,0.71,125.54,125.49,3.65989152]
[1766459066825,0.71,125.53,125.49,3.85989152]
[1766459067025,0.71,125.53,125.5,7.96811636]
[1766459067211,0.71,125.53,125.49,7.96855366]
[1766459067429,0.71,125.52,125.49,7.96855366]
[1766459067814,0.71,125.52,125.48,11.82909094]
[1766459068907,0.71,125.52,125.48,11.62909094]
[1766459069107,0.71,125.52,125.48,7.96919942]
[1766459070327,0.71,125.51,125.48,7.96919942]
[1766459070529,0.71,125.51,125.48,11.62909094]
[1766459070731,0.71,125.53,125.49,3.85989152]
[1766459071245,0.71,125.53,125.5,3.65989152]
[1766459071647,0.72,125.55,125.5,3.85989152]
[1766459072431,0.72,125.55,125.51,3.65989152]
[1766459072606,0.72,125.55,125.51,11.82675565]
[1766459073003,0.72,125.55,125.51,11.62675565]
[1766459073839,0.72,125.55,125.51,7.96686413]
[1766459074336,3.65989152,125.54,125.51,7.96686413]
[1766459074638,0.72,125.53,125.5,7.96800722]
[1766459076336,0.69,125.52,125.49,14.54]
[1766459076525,0.69,125.52,125.48,18.40657305]
[1766459076526,0.69,125.51,125.48,7.96890009]
[1766459078434,3.65989152,125.51,125.47,7.96982098]
[1766459078625,0.69,125.5,125.47,7.96982098]
[1766459080007,3.65989152,125.52,125.47,11.6297125]
[1766459080342,0.69,125.51,125.47,11.8297125]
[1766459080714,0.69,125.51,125.47,11.6297125]
[1766459081240,3.65989152,125.51,125.47,7.96982098]
[1766459081412,0.69,125.5,125.47,7.96982098]
[1766459082036,0.69,125.51,125.47,11.8297125]
[1766459084050,0.69,125.51,125.47,7.96982098]
[1766459084238,0.69,125.51,125.47,11.6297125]
[1766459084856,0.69,125.5,125.47,7.96982098]
[1766459087241,0.69,125.5,125.46,22.93053241]
[1766459087420,3.65989152,125.5,125.46,22.73053241]
[1766459087623,0.69,125.49,125.46,0.2]
[1766459087824,0.69,125.46,125.44,12.12480944]
[1766459088221,0.69,125.46,125.43,8.77243377]
[1766459088427,0.69,125.44,125.43,0.2]
[1766459088625,4.34989152,125.45,125.43,0.2]
[1766459088837,0.69,125.45,125.43,0.2]
[1766459089044,0.69,125.46,125.43,8.17242455]
[1766459089721,0.69,125.46,125.43,0.2]
[1766459089926,10.43767296,125.49,125.43,8.1724689]
[1766459090122,0.69,125.48,125.45,0.6]
[1766459090326,0.69,125.49,125.45,4.25989152]
[1766459090526,0.69,125.49,125.46,3.65989152]
[1766459090751,0.69,125.5,125.47,7.97003267]
[1766459090939,4.34989152,125.5,125.46,14.56]
[1766459091140,3.65989152,125.49,125.46,14.56]
[1766459091448,0.69,125.48,125.46,14.56]
[1766459092029,0.69,125.48,125.45,7.97114088]
[1766459092746,0.69,125.48,125.45,7.9713033]
[1766459093718,0.69,125.47,125.45,7.9713033]
[1766459093951,0.69,125.47,125.44,22.53190348]
[1766459094328,0.69,125.47,125.44,7.97190348]
[1766459094531,0.69,125.46,125.43,8.17241769]
[1766459094725,0.69,125.45,125.43,0.2]
[1766459096359,0.69,125.45,125.43,8.17253211]
[1766459097832,3.65989152,125.48,125.43,11.83242363]
[1766459098020,0.69,125.47,125.43,8.17253211]
[1766459098224,4.34989152,125.47,125.43,8.17253211]
[1766459098424,0.69,125.47,125.43,11.83242363]
[1766459098650,0.69,125.47,125.43,12.43242363]
[1766459098850,4.34989152,125.47,125.43,8.77253211]
[1766459099156,0.69,125.47,125.43,12.43242363]
[1766459099359,0.69,125.46,125.43,8.77253211]
[1766459099941,0.69,125.46,125.43,0.2]
[1766459100154,4.34989152,125.46,125.43,0.2]
[1766459100331,0.69,125.46,125.43,8.17255943]
[1766459100830,0.69,125.48,125.45,7.9713033]
[1766459101030,4.34989152,125.48,125.45,7.9713033]
[1766459101444,0.69,125.47,125.45,7.9713033]
[1766459101646,0.69,125.45,125.43,0.2]
[1766459102650,3.65989152,125.46,125.43,0.2]
[1766459102855,0.69,125.46,125.43,0.2]
[1766459105363,4.34989152,125.46,125.43,0.2]
[1766459105861,3.65989152,125.46,125.43,0.2]
[1766459106046,0.7,125.43,125.41,7.97353531]
[1766459106598,4.35989152,125.45,125.41,7.97353531]
[1766459106759,0.7,125.44,125.41,7.97353531]
[1766459107150,3.65989152,125.47,125.42,8.63315768]
[1766459107455,3.65989152,125.45,125.4,4.31989152]
[1766459107772,3.65989152,125.46,125.41,0.66]
[1766459107966,3.65989152,125.46,125.35,4.154167]
[1766459108136,3.65989152,125.41,125.36,0.66]
[1766459108566,14.56,125.45,125.34,0.66]
[1766459108567,3.65989152,125.39,125.34,0.66]
[1766459108763,3.65989152,125.39,125.35,7.97744344]
[1766459109073,3.65989152,125.4,125.35,8.63744344]
[1766459109243,10.43767296,125.42,125.35,8.63744344]
[1766459109449,3.65989152,125.4,125.36,0.66]
[1766459109651,3.65989152,125.41,125.36,0.66]
[1766459110169,10.43767296,125.44,125.37,0.66]
[1766459110367,3.65989152,125.41,125.37,0.66]
[1766459110571,3.65989152,125.4,125.35,8.63756705]
[1766459110750,3.65989152,125.39,125.35,8.63756705]
[1766459110948,3.65989152,125.4,125.36,7.97700578]
[1766459111247,3.65989152,125.39,125.36,7.97700578]
[1766459112058,3.65989152,125.4,125.36,7.97700578]
[1766459112369,7.97301959,125.43,125.37,0.66]
[1766459112665,3.65989152,125.42,125.37,0.66]
[1766459113244,3.65989152,125.43,125.37,0.66]
[1766459113675,3.65989152,125.43,125.38,0.66]
[1766459113971,3.65989152,125.42,125.38,0.66]
[1766459114764,3.65989152,125.43,125.38,8.63562212]
[1766459114959,3.65989152,125.43,125.39,0.66]
[1766459116373,18.40981366,125.44,125.39,0.66]
[1766459116589,19.92581869,125.47,125.4,0.66]
[1766459116748,7.96939751,125.48,125.41,0.66]
[1766459117143,3.65989152,125.46,125.41,0.66]
[1766459117567,3.65989152,125.45,125.41,0.66]
[1766459117844,10.43767296,125.47,125.41,0.66]
[1766459118071,3.65989152,125.44,125.41,0.66]
[1766459119458,3.65989152,125.44,125.41,8.63378036]
[1766459119973,3.65989152,125.42,125.39,0.66]
[1766459120361,3.65989152,125.43,125.39,0.66]
[1766459121075,3.65989152,125.43,125.4,0.66]
[1766459121671,3.65989152,125.42,125.38,7.97554555]
[1766459121874,3.65989152,125.42,125.39,0.66]
[1766459122680,3.65989152,125.42,125.39,8.63496374]
[1766459122857,3.65989152,125.43,125.39,8.63496374]
[1766459123180,3.65989152,125.44,125.4,0.66]
[1766459123960,2.3463322,125.45,125.41,0.66]
[1766459124278,2.3463322,125.46,125.41,0.66]
[1766459124848,2.3463322,125.45,125.41,0.66]
[1766459125275,2.3463322,125.45,125.41,8.63354584]
[1766459125861,2.3463322,125.44,125.41,0.66]
[1766459127580,2.3463322,125.45,125.41,8.63378207]
[1766459129862,18.40859371,125.46,125.41,0.66]
[1766459130062,2.3463322,125.45,125.41,0.66]
[1766459134080,2.3463322,125.45,125.41,8.63378405]
[1766459134388,10.43767296,125.47,125.43,0.7]
[1766459134581,10.43767296,125.47,125.41,7.97378405]
[1766459134582,12.78400516,125.47,125.41,30.25473071]
[1766459134880,10.43767296,125.47,125.42,0.7]
[1766459135061,10.43767296,125.47,125.4,14.56]
[1766459135262,10.43767296,125.47,125.38,8.67558912]
[1766459135263,16.9063322,125.46,125.38,8.67558912]
[1766459135458,2.3463322,125.41,125.38,8.67558912]
[1766459135677,10.43767296,125.43,125.38,8.67558912]
[1766459135878,2.3463322,125.42,125.39,0.69]
[1766459136189,10.43767296,125.43,125.39,0.69]
[1766459136490,2.3463322,125.42,125.39,0.69]
[1766459136968,10.43767296,125.43,125.39,0.69]
[1766459137174,10.43767296,125.43,125.39,8.66505135]
[1766459137375,2.3463322,125.46,125.41,0.69]
[1766459137778,2.3463322,125.44,125.41,0.69]
[1766459138084,2.3463322,125.45,125.41,0.69]
[1766459139195,2.3463322,125.44,125.41,0.69]
[1766459140192,2.3463322,125.43,125.39,8.66496447]
[1766459140398,2.3463322,125.43,125.4,0.69]
[1766459141279,2.3463322,125.42,125.38,23.22565351]
[1766459141690,2.3463322,125.43,125.38,23.22565351]
[1766459141994,2.3463322,125.42,125.38,8.66565351]
[1766459143902,7.97194051,125.44,125.39,0.69]
[1766459144202,2.3463322,125.43,125.39,0.69]
[1766459144694,2.3463322,125.42,125.39,0.69]
[1766459145996,7.97194051,125.44,125.39,0.69]
[1766459146195,2.3463322,125.42,125.39,0.69]
[1766459147904,18.40961347,125.44,125.39,0.69]
[1766459148099,2.3463322,125.41,125.38,0.69]
[1766459148302,18.40961347,125.44,125.38,0.69]
[1766459148488,2.3463322,125.42,125.38,0.69]
[1766459150315,10.43767296,125.44,125.39,0.69]
[1766459150481,2.3463322,125.44,125.39,0.69]
[1766459150682,2.3463322,125.43,125.39,0.69]
[1766459151096,22.53137516,125.45,125.39,0.69]
[1766459151293,2.3463322,125.43,125.39,0.69]
[1766459152401,2.3463322,125.43,125.39,7.97461601]
[1766459152584,2.3463322,125.43,125.4,0.69]
[1766459153185,22.53137516,125.45,125.4,0.69]
[1766459153388,2.3463322,125.43,125.4,0.69]
[1766459155907,14.56,125.45,125.38,0.69]
[1766459156104,2.3463322,125.43,125.38,0.69]
[1766459156621,14.56,125.45,125.39,0.69]
[1766459157110,2.3463322,125.44,125.39,0.69]
[1766459158216,2.3463322,125.44,125.4,0.69]
[1766459158405,2.3463322,125.43,125.4,0.69]
[1766459158604,2.3463322,125.42,125.39,0.69]
[1766459159315,22.53141628,125.45,125.39,0.69]
[1766459159617,2.3463322,125.42,125.39,0.69]
[1766459160313,2.3463322,125.41,125.39,0.69]
[1766459160520,2.3463322,125.41,125.37,14.56]
[1766459160816,2.3463322,125.41,125.38,0.69]
[1766459162908,7.97206458,125.44,125.39,0.69]
[1766459163221,2.3463322,125.44,125.39,0.69]
[1766459163423,2.3463322,125.44,125.4,0.69]
[1766459164316,22.53145322,125.45,125.4,0.69]
[1766459164612,2.3463322,125.43,125.4,0.69]
[1766459165032,2.3463322,125.43,125.4,8.66441819]
[1766459165206,22.53145322,125.45,125.4,8.66441819]
[1766459165409,2.3463322,125.43,125.4,0.69]
[1766459165919,2.3463322,125.44,125.41,0.66]
[1766459166223,2.3463322,125.43,125.41,0.66]
[1766459166412,20.754824,125.46,125.41,0.66]
[1766459166633,2.3463322,125.43,125.41,0.66]
[1766459166814,20.754824,125.46,125.41,0.66]
[1766459167113,2.3463322,125.44,125.41,0.66]
[1766459167998,18.4084918,125.46,125.41,0.66]
[1766459168205,2.3463322,125.44,125.41,0.66]
[1766459168523,2.3463322,125.42,125.38,8.63530898]
[1766459168703,14.56,125.45,125.38,0.66]
[1766459168903,2.3463322,125.4,125.38,0.66]
[1766459171931,2.3463322,125.4,125.37,0.66]
[1766459174606,2.3463322,125.39,125.37,0.66]
[1766459174807,7.97385357,125.41,125.37,0.66]
[1766459175103,2.3463322,125.4,125.37,0.66]
[1766459175534,7.97385357,125.41,125.37,0.66]
[1766459175731,2.3463322,125.4,125.37,0.66]
[1766459176235,18.41101057,125.42,125.37,0.66]
[1766459176436,2.3463322,125.39,125.35,14.56]
[1766459176641,2.3463322,125.39,125.36,0.66]
[1766459177340,12.78400516,125.41,125.36,0.66]
[1766459177718,10.43767296,125.41,125.36,0.66]
[1766459177903,12.78400516,125.41,125.36,0.66]
[1766459178233,10.43767296,125.41,125.38,0.66]
[1766459178406,12.78400516,125.41,125.38,0.66]
[1766459179230,2.3463322,125.4,125.38,0.66]
[1766459179430,2.3463322,125.4,125.36,0.66]
[1766459179615,2.3463322,125.39,125.36,0.66]
[1766459180224,2.3463322,125.4,125.36,0.66]
[1766459182134,18.41173966,125.41,125.36,0.66]
[1766459182338,2.3463322,125.4,125.36,0.66]
[1766459184743,2.3463322,125.4,125.31,0.66]
[1766459185035,2.3463322,125.39,125.34,0.66]
[1766459185340,7.9713033,125.45,125.38,0.66]
[1766459185540,22.5313033,125.45,125.39,0.66]
[1766459186347,42.45956157,125.45,125.39,0.66]
[1766459186519,3.66685656,125.43,125.39,0.66]
[1766459186839,3.66685656,125.41,125.37,0.66]
[1766459187013,7.97331989,125.42,125.36,0.66]
[1766459187014,3.66685656,125.4,125.36,0.66]
[1766459187218,10.43767296,125.41,125.37,0.66]
[1766459187418,3.66685656,125.42,125.38,0.66]
[1766459187941,18.41037942,125.43,125.39,3.66685656]
[1766459188540,18.41037942,125.43,125.38,4.32685656]
[1766459188839,22.07723598,125.43,125.38,0.66]
[1766459189020,18.41037942,125.43,125.38,4.32685656]
[1766459189338,22.07723598,125.43,125.37,3.66685656]
[1766459189648,3.66685656,125.42,125.37,4.32685656]
[1766459189834,38.34181528,125.43,125.37,4.32685656]
[1766459190241,42.00867184,125.43,125.37,0.66]
[1766459190423,42.00867184,125.43,125.37,4.32685656]
[1766459190624,10.43767296,125.43,125.39,3.66685656]
[1766459190823,10.43767296,125.43,125.4,4.32685656]
[1766459191533,18.41025993,125.43,125.36,0.68]
[1766459191720,22.07711649,125.43,125.37,0.68]
[1766459191922,22.07711649,125.43,125.37,3.66685656]
[1766459192144,22.07711649,125.43,125.38,0.68]
[1766459193045,3.66685656,125.42,125.37,3.66685656]
[1766459193242,3.66685656,125.42,125.36,4.34685656]
[1766459193422,3.66685656,125.41,125.36,4.34685656]
[1766459193623,10.43767296,125.4,125.36,4.34685656]
[1766459193833,10.43767296,125.4,125.36,0.68]
[1766459194033,10.43767296,125.4,125.36,4.34685656]
[1766459194548,10.43767296,125.4,125.37,0.68]
[1766459195447,7.9742229,125.41,125.37,4.34685656]
[1766459195651,32.97108288,125.42,125.38,3.66685656]
[1766459196150,32.97108288,125.42,125.37,0.68]
[1766459196351,32.97108288,125.42,125.37,4.34685656]
[1766459197255,36.63793944,125.42,125.37,4.34685656]
[1766459197636,36.63793944,125.42,125.37,0.68]
[1766459197939,36.63793944,125.42,125.37,4.34685656]
[1766459198354,36.63793944,125.42,125.37,0.68]
[1766459199164,36.63793944,125.42,125.37,4.34685656]
[1766459202172,32.97108288,125.42,125.37,4.34685656]
[1766459202337,36.63793944,125.42,125.37,4.34685656]
[1766459202679,32.97108288,125.42,125.38,3.66685656]
[1766459202850,24.99767296,125.42,125.4,0.7]
[1766459203170,24.99767296,125.42,125.4,4.36685656]
[1766459203542,24.99767296,125.42,125.38,0.7]
[1766459203764,24.99767296,125.42,125.39,3.66685656]
[1766459204257,24.99767296,125.42,125.39,4.36685656]
[1766459204468,10.43767296,125.42,125.3,0.2]
[1766459204774,3.66685656,125.33,125.3,1e-08]
[1766459204981,10.43767296,125.29,125.27,1e-08]
[1766459205269,14.75452952,125.29,125.27,1e-08]
[1766459205442,11.08767296,125.29,125.27,1e-08]
[1766459205648,12.61468529,125.32,125.27,1e-08]
[1766459205649,23.70235825,125.32,125.27,3.66685657]
[1766459205845,15.25267296,125.32,125.27,1e-08]
[1766459206037,4.31685656,125.3,125.27,1e-08]
[1766459206237,11.08767296,125.29,125.27,1e-08]
[1766459206453,8.63212005,125.28,125.23,0.9]
[1766459206637,12.29897661,125.28,125.23,19.14685656]
[1766459206836,12.29897661,125.28,125.23,15.48]
[1766459207038,12.29897661,125.28,125.23,19.14685656]
[1766459207240,0.65,125.27,125.23,0.9]
[1766459207783,4.31685656,125.27,125.23,15.48]
[1766459208467,4.31685656,125.27,125.23,0.9]
[1766459208646,8.63339453,125.26,125.23,14.78]
[1766459208846,0.65,125.28,125.23,3.86685656]
[1766459209036,0.65,125.3,125.25,3.66685656]
[1766459209236,8.63093575,125.3,125.24,0.7]
[1766459209457,22.08546527,125.3,125.25,0.7]
[1766459209778,4.31685656,125.29,125.26,14.58]
[1766459210349,4.31685656,125.29,125.25,0.7]
[1766459210679,19.07096343,125.27,125.23,0.9]
[1766459210977,10.43767296,125.27,125.23,4.56685656]
[1766459211387,18.42063641,125.27,125.23,4.56685656]
[1766459211704,22.73749297,125.27,125.23,0.9]
[1766459211855,0.65,125.26,125.23,0.2]
[1766459212675,12.30076624,125.26,125.23,0.2]
[1766459213086,0.65,125.25,125.2,18.94685656]
[1766459213258,4.31685656,125.25,125.2,4.36685656]
[1766459213450,3.66685656,125.25,125.2,18.94685656]
[1766459213648,11.08767296,125.23,125.19,0.7]
[1766459213862,10.43767296,125.23,125.2,0.7]
[1766459214079,10.43767296,125.23,125.2,4.36685656]
[1766459214274,10.43767296,125.23,125.18,0.7]
[1766459214477,10.43767296,125.23,125.19,0.7]
[1766459214778,11.08767296,125.25,125.21,0.7]
[1766459215176,10.43767296,125.25,125.19,14.58]
[1766459215360,11.08767296,125.25,125.21,3.66685656]
[1766459215873,11.08767296,125.25,125.2,4.36685656]
[1766459216082,0.65,125.24,125.2,18.94685656]
[1766459216253,11.08767296,125.25,125.2,4.36685656]
[1766459216573,7.98466943,125.24,125.2,4.36685656]
[1766459216771,11.08767296,125.25,125.21,4.36685656]
[1766459217280,10.43767296,125.25,125.22,0.7]
[1766459217471,11.08767296,125.23,125.19,3.66685656]
[1766459217660,11.08767296,125.23,125.18,18.94685656]
[1766459218061,11.08767296,125.23,125.18,15.28]